fUST/lending_fUST_20250830
["ID","MTS","AMOUNT","RATE_DAILY","PERIOD"]
[382296710,1756567838841,-2046.31,0.00018213,3]
[382296711,1756567838851,-1023.15,0.00018213,3]
[382296712,1756567838860,-511.58,0.00018213,3]
[382296713,1756567838869,-255.79,0.00018213,3]
[382296714,1756567838879,-767.39,0.00018213,3]
[382296715,1756567838888,-275.69,0.00018213,3]
[382296716,1756567838897,-827.07,0.00018213,3]
[382296717,1756567838907,-231.53,0.00018213,3]
[382296718,1756567838917,-694.62,0.00018213,3]
[382296719,1756567838926,-417.15472785,0.00018213,3]
[382296720,1756567838935,-425.65682239,0.00018213,3]
[382296721,1756567838944,-752.36174038,0.00018219,2]
[382296722,1756567838954,-500.0,0.00018221,2]
[382296723,1756567838963,-578.2804161,0.00018221,2]
[382296724,1756567838972,-500.0,0.00018222,2]
[382296725,1756567838982,-500.0,0.00018222,2]
[382296726,1756567838991,-366.48477522,0.00018222,2]
[382296727,1756567839001,-370000.0,0.00018223,2]
[382296728,1756567839010,-2434.74389024,0.00018267,2]
[382296729,1756567839020,-2524.82941417,0.00018322,2]
[382296730,1756567839029,-976.64982299,0.00018377,2]
[382296731,1756567839039,-500.0,0.00018496,2]
[382296732,1756567839049,-402.0,0.0001864,2]
[382296733,1756567839058,-300.0,0.00018688,20]
[382296734,1756567839068,-300.0,0.00018688,20]
[382296735,1756567839078,-300.0,0.00018688,20]
[382296736,1756567839087,-300.0,0.00018688,20]
[382296737,1756567839097,-300.0,0.00018688,20]
[382296738,1756567839107,-300.0,0.00018688,20]
[382296739,1756567839116,-300.0,0.00018688,20]
[382296740,1756567839126,-300.0,0.00018688,20]
[382296741,1756567839135,-300.0,0.00018688,20]
[382296742,1756567839145,-300.0,0.00018688,20]
[382296743,1756567839154,-300.0,0.00018688,20]
[382296744,1756567839164,-300.0,0.00018688,20]
[382296745,1756567839174,-300.0,0.00018688,20]
[382296746,1756567839183,-300.0,0.00018688,20]
[382296747,1756567839193,-300.0,0.00018688,20]
[382296748,1756567839203,-600.0,0.00018688,20]
[382296749,1756567839212,-309.0,0.00018706,2]
[382296750,1756567839221,-333.09488093,0.00018764,2]
[382296751,1756567839231,-500.0,0.0001877,2]
[382296752,1756567839240,-10738.29140019,0.00018897,2]
[382296753,1756567839250,-449.925,0.00018913,2]
[382296754,1756567839260,-160.0,0.0001895,2]
[382296755,1756567839270,-217.34977173,0.0001895,2]
[382296756,1756567839279,-216.25802849,0.0001895,2]
[382296757,1756567839289,-160.0,0.0001895,2]
[382296758,1756567839298,-425.65682239,0.0001895,2]
[382296759,1756567839308,-160.0,0.0001895,2]
[382296760,1756567839317,-417.15472785,0.0001895,2]
[382296761,1756567839327,-232.73020027,0.0001895,2]
[382296762,1756567839336,-160.0,0.0001895,2]
[382296763,1756567839346,-160.0,0.0001895,2]
[382296764,1756567839355,-845.75060209,0.0001895,2]
[382296765,1756567839365,-160.0,0.0001895,2]
[382296766,1756567839375,-529.89603018,0.0001895,2]
[382296767,1756567839384,-800.0,0.00018961,2]
[382296768,1756567839394,-84758.7620837,0.0001901,2]
[382296769,1756567839404,-500.0,0.00019044,2]
[382296770,1756567839413,-921.2205066,0.00019059,2]
[382296771,1756567839423,-402.0,0.00019063,2]
[382296772,1756567839432,-1000.0,0.00019078,2]
[382296773,1756567839442,-402.0,0.00019085,2]
[382296774,1756567839451,-6210.2308138,0.00019132,2]
[382296775,1756567839460,-402.0,0.00019132,2]
[382296776,1756567839470,-500.0,0.00019173,2]
[382296777,1756567839479,-500.0,0.00019173,2]
[382296778,1756567839489,-500.0,0.00019173,2]
[382296779,1756567839498,-500.73080979,0.00019173,2]
[382296780,1756567839508,-500.0,0.00019173,2]
[382296781,1756567839517,-500.0,0.00019173,2]
[382296782,1756567839527,-500.0,0.00019173,2]
[382296783,1756567839537,-500.0,0.00019173,2]
[382296784,1756567839547,-500.0,0.00019173,2]
[382296785,1756567839556,-500.0,0.00019173,2]
[382296786,1756567839566,-298.73321036,0.00019173,2]
[382296787,1756567839576,-500.0,0.00019173,2]
[382296788,1756567839586,-500.0,0.00019173,2]
[382296789,1756567839595,-500.0,0.00019173,2]
[382296790,1756567839605,-501.53040005,0.00019173,2]
[382296791,1756567839615,-541.21600235,0.00019173,2]
[382296792,1756567839624,-500.0,0.00019173,2]
[382296793,1756567839634,-500.0,0.00019173,2]
[382296794,1756567839643,-500.0,0.00019173,2]
[382296795,1756567839654,-500.0,0.00019173,2]
[382296796,1756567839663,-406.16681845,0.00019173,2]
[382296797,1756567839673,-500.0,0.00019173,2]
[382296798,1756567839683,-608.64124363,0.00019173,2]
[382296799,1756567839692,-500.0,0.00019173,2]
[382296800,1756567839703,-501.88061265,0.00019173,2]
[382296801,1756567839712,-501.74279141,0.00019173,2]
[382296802,1756567839722,-500.0,0.00019173,2]
[382296803,1756567839732,-501.00989355,0.00019173,2]
[382296804,1756567839742,-501.66464817,0.00019173,2]
[382296805,1756567839754,-500.0,0.00019173,2]
[382296806,1756567839763,-500.0,0.00019173,2]
[382296807,1756567839773,-501.96260547,0.00019173,2]
[382296808,1756567839783,-367.51569067,0.00019173,2]
[382296809,1756567839792,-500.0,0.00019173,2]
[382296810,1756567839802,-500.0,0.00019173,2]
[382296811,1756567839811,-500.0,0.00019173,2]
[382296812,1756567839820,-500.0,0.00019173,2]
[382296813,1756567839830,-500.0,0.00019173,2]
[382296814,1756567839839,-500.0,0.00019173,2]
[382296815,1756567839849,-359.56557046,0.00019173,2]
[382296816,1756567839863,-140.43442954,0.00019173,2]
[382296817,1756567839872,-500.0,0.00019173,2]
[382296818,1756567839882,-500.0,0.00019173,2]
[382296819,1756567839892,-500.0,0.00019173,2]
[382296820,1756567839901,-500.0,0.00019173,2]
[382296821,1756567839911,-500.0,0.00019173,2]
[382296822,1756567839921,-500.0,0.00019173,2]
[382296823,1756567839931,-500.58297378,0.00019173,2]
[382296824,1756567839941,-500.0,0.00019173,2]
[382296825,1756567839951,-503.44474853,0.00019173,2]
[382296826,1756567839961,-500.0,0.00019173,2]
[382296827,1756567839970,-500.0,0.00019173,2]
[382296829,1756567839980,-501.60924757,0.00019173,2]
[382296831,1756567839990,-227.83406372,0.00019173,2]
[382296833,1756567840001,-500.0,0.00019173,2]
[382296834,1756567840010,-500.0,0.00019178,2]
[382296837,1756567840020,-2360.44890722,0.00019178,2]
[382296838,1756567840030,-482.02895218,0.00019178,2]
[382296839,1756567840040,-480.0,0.00019178,2]
[382296841,1756567840050,-480.0,0.00019178,2]
[382296842,1756567840060,-480.0,0.00019178,2]
[382296843,1756567840070,-480.0,0.00019178,2]
[382296844,1756567840079,-480.0,0.00019178,2]
[382296845,1756567840090,-480.0,0.00019178,2]
[382296846,1756567840099,-480.0,0.00019178,2]
[382296847,1756567840110,-480.0,0.00019178,2]
[382296850,1756567840303,-480.0,0.00019178,2]
[382296851,1756567840313,-480.0,0.00019178,2]
[382296852,1756567840323,-588.0,0.00019178,2]
[382296853,1756567840332,-839.6,0.00019178,2]
[382296854,1756567840342,-480.0,0.00019178,2]
[382296856,1756567840351,-480.0,0.00019178,2]
[382296857,1756567840361,-480.0,0.00019178,2]
[382296858,1756567840372,-480.0,0.00019178,2]
[382296859,1756567840382,-480.0,0.00019178,2]
[382296860,1756567840392,-3214.11167767,0.00019178,2]
[382296861,1756567840401,-605.55,0.00019178,2]
[382296862,1756567840410,-480.0,0.00019178,2]
[382296863,1756567840420,-480.0,0.00019178,2]
[382296864,1756567840430,-698.16,0.00019178,2]
[382296865,1756567840439,-480.0,0.00019178,2]
[382296866,1756567840450,-480.0,0.00019178,2]
[382296867,1756567840459,-480.0,0.00019178,2]
[382296868,1756567840468,-480.0,0.00019178,2]
[382296869,1756567840478,-480.0,0.00019178,2]
[382296870,1756567840487,-480.0,0.00019178,2]
[382296871,1756567840497,-456.10223806,0.00019178,2]
[382296872,1756567840507,-598.02,0.00019178,2]
[382296873,1756567840517,-962.56,0.00019178,2]
[382296874,1756567840527,-480.0,0.00019178,2]
[382296875,1756567840537,-480.0,0.00019178,2]
[382296877,1756567840547,-480.0,0.00019178,2]
[382296879,1756567840556,-480.0,0.00019178,2]
[382296881,1756567840566,-480.0,0.00019178,2]
[382296883,1756567840576,-480.0,0.00019178,2]
[382296885,1756567840586,-1829.04,0.00019178,2]
[382296887,1756567840596,-620.22,0.00019178,2]
[382296889,1756567840606,-480.0,0.00019178,2]
[382296891,1756567840619,-500.0,0.00019178,2]
[382296892,1756567840630,-480.0,0.00019178,2]
[382296893,1756567840640,-480.0,0.00019178,2]
[382296894,1756567840649,-480.0,0.00019178,2]
[382296895,1756567840659,-480.0,0.00019178,2]
[382296896,1756567840668,-480.0,0.00019178,2]
[382296897,1756567840678,-480.0,0.00019178,2]
[382296898,1756567840688,-647.81,0.00019178,2]
[382296899,1756567840698,-480.0,0.00019178,2]
[382296900,1756567840708,-480.0,0.00019178,2]
[382296901,1756567840720,-57.09551573,0.00019178,2]
[382296936,1756567843636,-541.1842784,0.0001822,2]
[382296938,1756567843645,-500.0,0.0001822,2]
[382296940,1756567843655,-500.0,0.0001822,2]
[382296942,1756567843664,-500.0,0.0001822,2]
[382296943,1756567843674,-416.38546668,0.0001822,2]
[382296944,1756567843683,-500.0,0.0001822,2]
[382296945,1756567843693,-500.0,0.0001822,2]
[382296946,1756567843703,-500.0,0.0001822,2]
[382296947,1756567843712,-500.0,0.0001822,2]
[382296948,1756567843722,-500.0,0.0001822,2]
[382296949,1756567843732,-320.81914243,0.0001822,2]
[382296950,1756567843742,-500.0,0.0001822,2]
[382296951,1756567843752,-500.0,0.0001822,2]
[382296952,1756567843762,-500.0,0.0001822,2]
[382296953,1756567843772,-184.53599052,0.0001822,2]
[382296954,1756567843781,-500.0,0.0001822,2]
[382296955,1756567843791,-500.0,0.0001822,2]
[382296956,1756567843800,-500.0,0.0001822,2]
[382296957,1756567843810,-500.0,0.0001822,2]
[382296958,1756567843819,-500.0,0.0001822,2]
[382296959,1756567843829,-222.0165208,0.0001822,2]
[382296960,1756567843838,-257.45447402,0.0001822,2]
[382296961,1756567844062,-154.49793884,0.0001822,2]
[382296973,1756567847129,-88.04758714,0.0001822,2]
[382296974,1756567847139,-500.0,0.0001822,2]
[382296975,1756567847149,-147.002056,0.0001822,2]
[382296977,1756567895767,4259.7428196,0.00017925,2]
[382296978,1756567913821,10000.0,0.00027,120]
[382296979,1756567924186,600.0,0.00027397,120]
[382296980,1756567941933,3389.01027348,0.00018011,2]
[382296981,1756567956481,3721.4968713,0.00017264,2]
[382296982,1756567972590,5000.0,0.00018011,2]
[382296983,1756567994974,-169.26903636,0.00018112,2]
[382296985,1756567997198,-130.73096364,0.00018112,2]
[382296986,1756567997223,-40.45949801,0.00018113,3]
[382296987,1756567998835,-344.6254856,0.00018113,3]
[382296988,1756568002272,-416.3984427,0.00018113,3]
[382296989,1756568005053,-292.54636837,0.00018113,3]
[382296991,1756568105111,5000.0,0.00018011,2]
[382296992,1756568115615,-198.1046306,0.00018034,2]
[382296993,1756568118268,-329.78370203,0.00018034,2]
[382296994,1756568120722,-97.12983145,0.00018034,2]
[382296995,1756568128146,5000.0,0.00018011,2]
[382296996,1756568152188,0.01,0.00018011,2]
[382296997,1756568152213,4999.99,0.00018011,2]
[382296998,1756568176210,1689.34166229,0.00018011,2]
[382296999,1756568185176,-151.70607044,0.00018022,2]
[382297000,1756568187441,-175.01015931,0.00018022,2]
[382297001,1756568189066,-151.0,0.00018022,2]
[382297002,1756568191103,-299.85556782,0.00018022,2]
[382297003,1756568193973,-232.47023236,0.00018022,2]
[382297004,1756568195282,-283.87538416,0.00018022,2]
[382297005,1756568197292,-370.51012084,0.00018022,2]
[382297006,1756568199321,3310.67833771,0.00018011,2]
[382297007,1756568199345,102.29588422,0.00018011,2]
[382297008,1756568200692,-270.6470374,0.00018022,2]
[382297009,1756568206359,1000.0,0.0001712,2]
[382297010,1756568214806,232.47023236,0.00018011,2]
[382297011,1756568270779,267.481975,0.00017122,2]
[382297016,1756568335446,582.602696,0.00017117,2]
[382297020,1756568453983,571.57272,0.00017113,2]
[382297022,1756568743133,167.40560725,0.00017929,2]
[382297023,1756568766914,3645.58432601,0.00017641,7]
[382297024,1756568769387,3030.78626111,0.00018009,2]
[382297025,1756568801065,399.81029805,0.00018011,2]
[382297026,1756568801091,1975.25872539,0.00018011,2]
[382297029,1756568865163,854.0,0.00017916,2]
[382297031,1756568871168,854.0,0.00017613,2]
[382297032,1756568875732,854.0,0.00017607,2]
[382297033,1756568933786,5000.0,0.00018011,2]
[382297034,1756568957217,2438.01,0.00018011,2]
[382297035,1756568957246,2561.99,0.00018011,2]
[382297036,1756568965733,5000.0,0.00018011,2]
[382297037,1756568973828,2438.02,0.00018011,2]
[382297038,1756568973860,2561.98,0.00018011,2]
[382297039,1756568981999,-177.0,0.00018028,2]
[382297040,1756568982031,-300.0,0.00018028,2]
[382297041,1756568982064,-1200.0,0.00018028,2]
[382297042,1756568982096,-1200.0,0.00018033,2]
[382297043,1756568982129,-300.0,0.00018033,2]
[382297044,1756568982628,5000.0,0.00018011,2]
[382297045,1756568983142,-3531.21937357,0.00018034,2]
[382297046,1756568983175,-10000.01,0.00018034,2]
[382297047,1756568983223,-4477.45276091,0.00018034,2]
[382297048,1756568983255,-191.10447818,0.0001806,2]
[382297049,1756568983316,-662.89552182,0.0001806,2]
[382297050,1756568983381,-562.5,0.00018108,3]
[382297051,1756568983413,-2875.16,0.00018109,3]
[382297052,1756568983458,-3124.69,0.00018109,3]
[382297053,1756568983525,-2999.93,0.00018109,3]
[382297054,1756568983557,-1499.96,0.00018109,3]
[382297055,1756568983587,-250.25,0.00018109,3]
[382297056,1756568983648,-499.73,0.00018109,3]
[382297057,1756568983688,-374.99,0.00018109,3]
[382297058,1756568983734,-9250.03,0.00018109,3]
[382297059,1756568983808,-2111.52901651,0.00018109,3]
[382297060,1756568983849,-5776.95196698,0.00018109,2]
[382297061,1756568984011,-10000.01,0.00018109,2]
[382297062,1756568984152,-10000.01,0.00018109,2]
[382297063,1756568990503,5000.0,0.00018011,2]
[382297064,1756568998435,5000.0,0.00018011,2]
[382297066,1756569006858,5000.0,0.00018011,2]
[382297067,1756569014546,0.01,0.00018011,2]
[382297068,1756569014573,4856.59907348,0.00018011,2]
[382297069,1756569030378,5000.0,0.00018011,2]
[382297103,1756569037092,1223.05883183,0.00017999,2]
[382297115,1756569038633,5000.0,0.00018011,2]
[382297116,1756569038654,-359.1962722,0.00018099,3]
[382297117,1756569038718,-225.0437278,0.00018099,3]
[382297118,1756569038729,-90.6810722,0.00018099,3]
[382297119,1756569038741,-201.4389278,0.00018099,3]
[382297120,1756569038750,-876.41,0.00018099,3]
[382297121,1756569038760,-161.48883767,0.000181,2]
[382297122,1756569038770,-300.0,0.00018108,2]
[382297123,1756569038780,-1200.0,0.00018108,2]
[382297124,1756569038790,-500.0,0.00018108,2]
[382297125,1756569038800,-500.0,0.00018108,2]
[382297127,1756569038809,-36.95395015,0.00018108,2]
[382297128,1756569038820,-463.04604985,0.00018108,2]
[382297129,1756569038830,-82.84575501,0.00018108,2]
[382297130,1756569038842,-417.15424499,0.00018108,2]
[382297131,1756569038851,-500.0,0.00018108,2]
[382297132,1756569038863,-208.64721293,0.00018108,2]
[382297133,1756569038875,-425.65682239,0.00018109,3]
[382297134,1756569038884,-1207.3884807,0.00018109,2]
[382297136,1756569038900,-13286.04046056,0.00018109,2]
[382297138,1756569038910,-752.36174038,0.00018111,2]
[382297140,1756569038919,-998.40255591,0.00018112,2]
[382297142,1756569038929,-500.0,0.00018112,2]
[382297144,1756569038939,-250.0,0.00018112,2]
[382297146,1756569038949,-151.0,0.00018112,2]
[382297148,1756569038958,-500.0,0.00018112,2]
[382297150,1756569038968,-250.0,0.00018112,2]
[382297152,1756569038977,-151.0,0.00018112,2]
[382297154,1756569038987,-151.0,0.00018112,2]
[382297156,1756569038996,-500.0,0.00018112,2]
[382297158,1756569039006,-151.0,0.00018112,2]
[382297160,1756569039015,-151.0,0.00018112,2]
[382297162,1756569039025,-230.0,0.00018112,2]
[382297164,1756569039034,-151.0,0.00018112,2]
[382297166,1756569039043,-151.0,0.00018112,2]
[382297168,1756569039053,-151.0,0.00018112,2]
[382297170,1756569039063,-151.0,0.00018112,2]
[382297172,1756569039072,-187.78006525,0.00018112,2]
[382297174,1756569039081,-151.0,0.00018112,2]
[382297176,1756569039091,-151.0,0.00018112,2]
[382297196,1756569039286,-151.0,0.00018112,2]
[382297198,1756569039299,-500.0,0.00018112,2]
[382297200,1756569039308,-151.0,0.00018112,2]
[382297202,1756569039318,-151.0,0.00018112,2]
[382297204,1756569039329,-500.0,0.00018112,2]
[382297206,1756569039338,-151.0,0.00018112,2]
[382297208,1756569039347,-151.0,0.00018112,2]
[382297210,1756569039357,-500.0,0.00018112,2]
[382297212,1756569039367,-151.0,0.00018112,2]
[382297214,1756569039376,-151.0,0.00018112,2]
[382297216,1756569039386,-463.65494024,0.00018112,2]
[382297218,1756569039396,-151.0,0.00018112,2]
[382297219,1756569039406,-151.0,0.00018112,2]
[382297221,1756569039417,-151.0,0.00018112,2]
[382297223,1756569039426,-500.0,0.00018112,2]
[382297225,1756569039436,-500.0,0.00018112,2]
[382297227,1756569039448,-151.0,0.00018112,2]
[382297229,1756569039457,-500.0,0.00018112,2]
[382297231,1756569039466,-151.0,0.00018112,2]
[382297233,1756569039476,-500.0,0.00018112,2]
[382297235,1756569039485,-151.0,0.00018112,2]
[382297237,1756569039495,-500.0,0.00018112,2]
[382297239,1756569039504,-151.0,0.00018112,2]
[382297241,1756569039514,-500.0,0.00018112,2]
[382297243,1756569039523,-500.0,0.00018112,2]
[382297245,1756569039533,-151.0,0.00018112,2]
[382297247,1756569039543,-290.01689684,0.00018112,2]
[382297249,1756569039553,-500.0,0.00018112,2]
[382297251,1756569039562,-500.0,0.00018112,2]
[382297253,1756569039572,-151.0,0.00018112,2]
[382297254,1756569039582,-500.0,0.00018112,2]
[382297256,1756569039591,-500.0,0.00018112,2]
[382297258,1756569039601,-500.0,0.00018112,2]
[382297260,1756569039611,-151.0,0.00018112,2]
[382297262,1756569039620,-500.0,0.00018112,2]
[382297264,1756569039630,-500.0,0.00018112,2]
[382297266,1756569039640,-151.0,0.00018112,2]
[382297268,1756569039650,-500.0,0.00018112,2]
[382297270,1756569039661,-1000.0,0.00018112,2]
[382297272,1756569039672,-500.0,0.00018112,2]
[382297274,1756569039686,-1000.0,0.00018112,2]
[382297276,1756569039695,-500.0,0.00018112,2]
[382297278,1756569039705,-500.0,0.00018112,2]
[382297280,1756569039714,-500.0,0.00018112,2]
[382297282,1756569039723,-254.52718479,0.00018112,2]
[382297284,1756569039732,-151.08059236,0.00018112,2]
[382297286,1756569039741,-1000.0,0.00018112,2]
[382297287,1756569039754,-1000.0,0.00018112,2]
[382297289,1756569039763,-1000.0,0.00018112,2]
[382297291,1756569039773,-1000.0,0.00018112,2]
[382297293,1756569039782,-1000.0,0.00018112,2]
[382297295,1756569039792,-963.21993475,0.00018112,2]
[382297297,1756569039802,-187.5,0.00018113,3]
[382297299,1756569039813,-500.0,0.00018122,2]
[382297301,1756569039823,-500.0,0.00018122,2]
[382297303,1756569039833,-500.0,0.00018122,2]
[382297305,1756569039843,-296.51956954,0.00018122,2]
[382297307,1756569039853,-200.0,0.00018123,10]
[382297309,1756569039865,-200.0,0.00018123,10]
[382297311,1756569039876,-200.0,0.00018123,10]
[382297313,1756569039885,-200.0,0.00018123,10]
[382297315,1756569039895,-200.0,0.00018123,10]
[382297317,1756569039905,-200.0,0.00018123,10]
[382297319,1756569039915,-200.0,0.00018123,10]
[382297321,1756569039924,-200.0,0.00018123,10]
[382297323,1756569039934,-200.0,0.00018123,10]
[382297325,1756569039944,-200.0,0.00018123,10]
[382297327,1756569039953,-200.0,0.00018123,10]
[382297329,1756569039963,-200.0,0.00018123,10]
[382297331,1756569039973,-370000.0,0.00018123,2]
[382297332,1756569039983,-168.0,0.00018134,2]
[382297334,1756569039994,-168.0,0.00018136,2]
[382297336,1756569040004,-854.0,0.00018166,2]
[382297338,1756569040014,-500.0,0.00018173,2]
[382297340,1756569040024,-500.0,0.00018173,2]
[382297342,1756569040034,-500.0,0.00018173,2]
[382297344,1756569040045,-608.64124363,0.00018173,2]
[382297346,1756569040055,-500.0,0.00018173,2]
[382297348,1756569040065,-500.0,0.00018173,2]
[382297350,1756569040075,-500.0,0.00018173,2]
[382297352,1756569040085,-500.0,0.00018173,2]
[382297354,1756569040096,-500.0,0.00018173,2]
[382297356,1756569040106,-500.0,0.00018173,2]
[382297358,1756569040116,-500.0,0.00018173,2]
[382297361,1756569040127,-500.0,0.00018173,2]
[382297364,1756569040136,-500.0,0.00018173,2]
[382297366,1756569040146,-244.67576448,0.00018173,2]
[382297368,1756569040155,-500.0,0.00018173,2]
[382297370,1756569040165,-500.0,0.00018173,2]
[382297372,1756569040175,-500.0,0.00018173,2]
[382297374,1756569040184,-500.0,0.00018173,2]
[382297375,1756569040195,-377.58739239,0.00018173,2]
[382297378,1756569040204,-500.0,0.00018173,2]
[382297380,1756569040214,-500.0,0.00018173,2]
[382297382,1756569040224,-367.51569067,0.00018173,2]
[382297383,1756569040236,-227.83406372,0.00018173,2]
[382297386,1756569040249,-500.0,0.00018173,2]
[382297388,1756569040260,-500.0,0.00018173,2]
[382297390,1756569040269,-500.0,0.00018173,2]
[382297392,1756569040279,-501.66464817,0.00018173,2]
[382297394,1756569040290,-500.0,0.00018173,2]
[382297396,1756569040299,-500.0,0.00018173,2]
[382297398,1756569040309,-400.92377988,0.00018173,2]
[382297400,1756569040318,-500.0,0.00018173,2]
[382297402,1756569040329,-500.0,0.00018173,2]
[382297404,1756569040339,-500.0,0.00018173,2]
[382297405,1756569040348,-500.0,0.00018173,2]
[382297407,1756569040358,-500.0,0.00018173,2]
[382297409,1756569040368,-500.0,0.00018173,2]
[382297411,1756569040377,-500.0,0.00018173,2]
[382297413,1756569040387,-501.96260547,0.00018173,2]
[382297415,1756569040397,-501.00989355,0.00018173,2]
[382297417,1756569040406,-500.0,0.00018173,2]
[382297419,1756569040416,-501.74279141,0.00018173,2]
[382297421,1756569040426,-500.0,0.00018173,2]
[382297423,1756569040435,-501.60924757,0.00018173,2]
[382297425,1756569040448,-500.0,0.00018173,2]
[382297427,1756569040459,-500.0,0.00018173,2]
[382297429,1756569040468,-500.0,0.00018173,2]
[382297431,1756569040478,-500.0,0.00018173,2]
[382297433,1756569040488,-500.0,0.00018173,2]
[382297435,1756569040497,-500.0,0.00018173,2]
[382297437,1756569040507,-503.44474853,0.00018173,2]
[382297439,1756569040516,-2375.06902344,0.00018188,2]
[382297441,1756569040526,-3864.29309118,0.00018305,2]
[382297443,1756569040536,-3784.19446071,0.0001835,2]
[382297444,1756569040545,-96187.9152638,0.0001835,2]
[382297446,1756569040555,-63654.9194315,0.0001835,2]
[382297448,1756569040565,-2375.06902344,0.00018364,2]
[382297450,1756569040575,-500.0,0.00018386,2]
[382297452,1756569040586,-344.0,0.0001839,2]
[382297454,1756569040595,-151.0,0.000185,2]
[382297456,1756569040605,-2375.06902344,0.00018541,2]
[382297458,1756569040614,-300.0,0.00018583,20]
[382297460,1756569040624,-300.0,0.00018583,20]
[382297462,1756569040633,-300.0,0.00018583,20]
[382297464,1756569040643,-300.0,0.00018583,20]
[382297466,1756569040652,-300.0,0.00018583,20]
[382297468,1756569040662,-300.0,0.00018583,20]
[382297470,1756569040675,-300.0,0.00018583,20]
[382297472,1756569040687,-300.0,0.00018583,20]
[382297474,1756569040696,-300.0,0.00018583,20]
[382297476,1756569040706,-300.0,0.00018583,20]
[382297478,1756569040715,-300.0,0.00018583,20]
[382297480,1756569040725,-300.0,0.00018583,20]
[382297482,1756569040736,-300.0,0.00018583,20]
[382297484,1756569040746,-300.0,0.00018583,20]
[382297486,1756569040755,-300.0,0.00018583,20]
[382297488,1756569040765,-600.0,0.00018583,20]
[382297490,1756569040775,-22742.2482244,0.00018588,2]
[382297492,1756569040785,-151.0,0.000186,2]
[382297494,1756569040794,-225.23694237,0.00018629,2]
[382297496,1756569040804,-755.0,0.0001866,2]
[382297498,1756569040814,-500.0,0.0001866,2]
[382297500,1756569040823,-18008.68213446,0.00018693,2]
[382297502,1756569040836,-2375.06902344,0.00018717,2]
[382297504,1756569040846,-541.21600235,0.00018721,2]
[382297505,1756569040855,-406.16681845,0.00018721,2]
[382297506,1756569040868,-1000.0,0.00018721,2]
[382297507,1756569040877,-1000.0,0.00018721,2]
[382297508,1756569040886,-1000.0,0.00018721,2]
[382297509,1756569040895,-501.53040005,0.00018721,2]
[382297510,1756569040906,-1000.0,0.00018721,2]
[382297511,1756569040915,-1000.0,0.00018721,2]
[382297512,1756569040924,-1000.0,0.00018721,2]
[382297513,1756569040934,-1000.0,0.00018721,2]
[382297514,1756569040944,-500.73080979,0.00018721,2]
[382297515,1756569040954,-1000.0,0.00018721,2]
[382297516,1756569040963,-1000.0,0.00018721,2]
[382297517,1756569040972,-1000.0,0.00018721,2]
[382297518,1756569040981,-1000.0,0.00018721,2]
[382297519,1756569040990,-1115.59438526,0.00018721,2]
[382297520,1756569040999,-1000.0,0.00018721,2]
[382297521,1756569041009,-522.90478917,0.00018721,2]
[382297522,1756569041018,-1000.0,0.00018721,2]
[382297523,1756569041028,-502.65984623,0.00018721,2]
[382297524,1756569041038,-500.0,0.00018721,2]
[382297525,1756569041047,-1000.0,0.00018721,2]
[382297526,1756569041056,-1000.0,0.00018721,2]